fUSD/lending_fUSD_20240426
["ID","MTS","AMOUNT","RATE_DAILY","PERIOD"]
[323692276,1714165891326,-831.79,0.00013972,2]
[323692277,1714165891337,-2022.3,0.00013972,2]
[323692278,1714165891346,-4234.92,0.00013972,2]
[323692279,1714165891355,-2096.72,0.00013972,2]
[323692280,1714165891364,-1713.59,0.00013972,2]
[323692281,1714165891373,-625.39,0.00013972,2]
[323692282,1714165891383,-3159.71,0.00013972,2]
[323692283,1714165891394,-1338.07,0.00013972,2]
[323692284,1714165891403,-629.77,0.00013972,2]
[323692285,1714165891413,-15953.33,0.00013972,2]
[323692286,1714165891422,-500.0,0.00013972,2]
[323692287,1714165891431,-2250.5,0.00013972,2]
[323692288,1714165891441,-8716.91,0.00013972,2]
[323692289,1714165891450,-2333.3,0.00013972,2]
[323692290,1714165891460,-4686.34,0.00013972,2]
[323692291,1714165891470,-2136.27,0.00013972,2]
[323692292,1714165891482,-1350.24,0.00013972,2]
[323692293,1714165891493,-1193.75,0.00013972,2]
[323692294,1714165891503,-1860.65,0.00013972,2]
[323692295,1714165891515,-1152.1,0.00013972,2]
[323692296,1714165891526,-3493.58,0.00013972,2]
[323692297,1714165891535,-720.21,0.00013972,2]
[323692298,1714165891546,-1609.49,0.00013972,2]
[323692299,1714165891558,-743.96,0.00013972,2]
[323692300,1714165891570,-4354.83,0.00013972,2]
[323692301,1714165891582,-902.48,0.00013972,2]
[323692302,1714165891591,-771.76,0.00013972,2]
[323692303,1714165891600,-937.47,0.00013972,2]
[323692304,1714165891610,-563.05,0.00013972,2]
[323692305,1714165891620,-1806.19,0.00013972,2]
[323692306,1714165891630,-1571.07,0.00013972,2]
[323692307,1714165891640,-2572.91,0.00013972,2]
[323692308,1714165891651,-1736.03,0.00013972,2]
[323692309,1714165891663,-4550.03,0.00013972,2]
[323692310,1714165891674,-702.48,0.00013972,2]
[323692311,1714165891686,-2483.94,0.00013972,2]
[323692312,1714165891697,-683.53,0.00013972,2]
[323692313,1714165891708,-2118.68,0.00013972,2]
[323692314,1714165891718,-2305.98,0.00013972,2]
[323692315,1714165891728,-2824.94,0.00013972,2]
[323692316,1714165891737,-1519.98,0.00013972,2]
[323692317,1714165891748,-1443.87,0.00013972,2]
[323692318,1714165891758,-1079.67,0.00013972,2]
[323692319,1714165891769,-500.0,0.00013972,2]
[323692320,1714165891780,-5799.26,0.00013972,2]
[323692321,1714165891791,-2700.57,0.00013972,2]
[323692322,1714165891805,-1958.57,0.00013972,2]
[323692323,1714165891814,-500.0,0.00013972,2]
[323692324,1714165891825,-1238.29,0.00013972,2]
[323692325,1714165891835,-2076.33,0.00013972,2]
[323692326,1714165891845,-726.92,0.00013972,2]
[323692327,1714165891855,-3054.76,0.00013972,2]
[323692328,1714165891866,-978.83,0.00013972,2]
[323692329,1714165891876,-2476.96,0.00013972,2]
[323692330,1714165891887,-897.14,0.00013972,2]
[323692331,1714165891898,-1563.14,0.00013972,2]
[323692332,1714165891909,-1893.28,0.00013972,2]
[323692333,1714165891919,-900.63,0.00013972,2]
[323692334,1714165891929,-1013.72,0.00013972,2]
[323692335,1714165891939,-718.21,0.00013972,2]
[323692336,1714165891949,-555.79,0.00013972,2]
[323692337,1714165891960,-6088.6,0.00013972,2]
[323692338,1714165891970,-1066.3,0.00013972,2]
[323692339,1714165891981,-500.0,0.00013972,2]
[323692340,1714165891991,-505.04,0.00013972,2]
[323692341,1714165892003,-2410.31,0.00013972,2]
[323692342,1714165892012,-820.43,0.00013972,2]
[323692343,1714165892024,-523.49,0.00013972,2]
[323692344,1714165892034,-908.81,0.00013972,2]
[323692345,1714165892043,-500.0,0.00013972,2]
[323692346,1714165892054,-1371.32,0.00013972,2]
[323692347,1714165892064,-2025.12,0.00013972,2]
[323692348,1714165892073,-560.23,0.00013972,2]
[323692349,1714165892084,-3137.06,0.00013972,2]
[323692350,1714165892094,-369.65,0.00013972,2]
[323692351,1714165892104,-578.95,0.00013972,2]
[323692352,1714165892115,-995.94,0.00013972,2]
[323692353,1714165892126,-500.0,0.00013972,2]
[323692354,1714165892135,-2682.02,0.00013972,2]
[323692355,1714165892144,-500.0,0.00013972,2]
[323692356,1714165892155,-500.0,0.00013972,2]
[323692357,1714165892164,-1815.94,0.00013972,2]
[323692358,1714165892174,-500.0,0.00013972,2]
[323692359,1714165892183,-500.0,0.00013972,2]
[323692360,1714165892192,-1000.0,0.00014,3]
[323692361,1714165892201,-842.0,0.00014,2]
[323692362,1714165892211,-268.08,0.00014,2]
[323692363,1714165892220,-268.08,0.00014,2]
[323692364,1714165892229,-268.08,0.00014,2]
[323692365,1714165892238,-268.08,0.00014,2]
[323692366,1714165892247,-268.08,0.00014,2]
[323692367,1714165892256,-268.08,0.00014,2]
[323692368,1714165892266,-268.08,0.00014,2]
[323692369,1714165892275,-268.08,0.00014,2]
[323692370,1714165892284,-268.08,0.00014,2]
[323692371,1714165892296,-268.08,0.00014,2]
[323692372,1714165892305,-268.08,0.00014,2]
[323692373,1714165892315,-220.27,0.00014031,2]
[323692374,1714165892325,-21746.55555,0.00014094,2]
[323692375,1714165892335,-14497.703699,0.00014094,2]
[323692376,1714165892344,-400.911725,0.00014094,2]
[323692377,1714165892354,-841.6,0.00014121,2]
[323692378,1714165892364,-1137.0,0.00014137,2]
[323692379,1714165892373,-541.91,0.00014246,2]
[323692380,1714165892383,-500.0,0.00014246,2]
[323692381,1714165892392,-615.87,0.00014246,2]
[323692382,1714165892402,-500.0,0.00014246,2]
[323692383,1714165892411,-500.0,0.00014246,2]
[323692384,1714165892420,-500.0,0.00014246,2]
[323692385,1714165892430,-500.0,0.00014246,2]
[323692386,1714165892439,-609.49,0.00014246,2]
[323692387,1714165892449,-500.0,0.00014246,2]
[323692388,1714165892459,-654.47,0.00014246,2]
[323692389,1714165892468,-678.23,0.00014246,2]
[323692390,1714165892477,-613.12,0.00014246,2]
[323692391,1714165892486,-646.77,0.00014246,2]
[323692392,1714165892495,-530.65,0.00014246,2]
[323692393,1714165892504,-880.46,0.00014246,2]
[323692394,1714165892513,-1006.3,0.00014246,2]
[323692395,1714165892523,-500.0,0.00014246,2]
[323692396,1714165892532,-500.0,0.00014246,2]
[323692397,1714165892541,-1261.56,0.00014246,2]
[323692398,1714165892551,-1360.51,0.00014246,2]
[323692399,1714165892560,-504.93,0.00014246,2]
[323692400,1714165892569,-1108.07,0.00014246,2]
[323692401,1714165892578,-500.0,0.00014246,2]
[323692402,1714165892587,-822.7,0.00014246,2]
[323692403,1714165892596,-543.02,0.00014246,2]
[323692404,1714165892605,-500.0,0.00014246,2]
[323692405,1714165892614,-1146.38,0.00014246,2]
[323692406,1714165892624,-1304.31,0.00014246,2]
[323692407,1714165892633,-560.91,0.00014246,2]
[323692408,1714165892641,-500.0,0.00014246,2]
[323692409,1714165892650,-500.0,0.00014246,2]
[323692410,1714165892659,-500.0,0.00014246,2]
[323692411,1714165892669,-921.09,0.00014246,2]
[323692412,1714165892679,-500.0,0.00014246,2]
[323692413,1714165892688,-700.07,0.00014246,2]
[323692414,1714165892697,-1367.84,0.00014246,2]
[323692415,1714165892707,-748.97,0.00014246,2]
[323692416,1714165892717,-760.98,0.00014246,2]
[323692417,1714165892726,-500.0,0.00014246,2]
[323692418,1714165892735,-726.54,0.00014246,2]
[323692419,1714165892744,-550.92,0.00014246,2]
[323692420,1714165892753,-1430.99,0.00014246,2]
[323692421,1714165892763,-570.48,0.00014246,2]
[323692422,1714165892772,-676.01,0.00014246,2]
[323692423,1714165892781,-500.0,0.00014246,2]
[323692424,1714165892790,-625.5190412,0.00014246,2]
[323692425,1714165892799,-1217.26,0.00014246,2]
[323692426,1714165892808,-792.02,0.00014246,2]
[323692427,1714165892818,-536.60858624,0.00014246,2]
[323692428,1714165892827,-500.0,0.00014246,2]
[323692429,1714165892836,-725.24,0.00014246,2]
[323692430,1714165892846,-872.88,0.00014246,2]
[323692431,1714165892856,-940.41,0.00014246,2]
[323692432,1714165892865,-509.95,0.00014246,2]
[323692433,1714165892875,-2000.0,0.00014246,2]
[323692434,1714165892884,-803.02,0.00014246,2]
[323692435,1714165892893,-363.21,0.00014246,2]
[323692436,1714165892902,-500.0,0.00014246,2]
[323692437,1714165892912,-749.95,0.00014246,2]
[323692438,1714165892921,-527.35,0.00014246,2]
[323692439,1714165892931,-500.0,0.00014246,2]
[323692440,1714165892941,-565.11,0.00014246,2]
[323692441,1714165892950,-656.68,0.00014246,2]
[323692442,1714165892961,-626.53,0.00014246,2]
[323692443,1714165892970,-1008.89,0.00014246,2]
[323692444,1714165892979,-500.0,0.00014246,2]
[323692445,1714165892988,-837.59,0.00014246,2]
[323692446,1714165892997,-525.53,0.00014246,2]
[323692447,1714165893006,-1849.17,0.00014246,2]
[323692448,1714165893016,-565.57,0.00014246,2]
[323692449,1714165893025,-500.0,0.00014246,2]
[323692450,1714165893034,-1095.79,0.00014246,2]
[323692451,1714165893043,-500.0,0.00014246,2]
[323692452,1714165893052,-1100.72,0.00014246,2]
[323692453,1714165893062,-500.0,0.00014246,2]
[323692454,1714165893071,-500.0,0.00014246,2]
[323692455,1714165893080,-609.39,0.00014246,2]
[323692456,1714165893090,-500.0,0.00014246,2]
[323692457,1714165893099,-1415.44,0.00014246,2]
[323692458,1714165893108,-721.08,0.00014246,2]
[323692459,1714165893118,-500.0,0.00014246,2]
[323692460,1714165893126,-521.34,0.00014246,2]
[323692461,1714165893136,-5617.73,0.00014246,2]
[323692462,1714165893145,-8630.93,0.00014246,2]
[323692463,1714165893154,-1052.38,0.00014246,2]
[323692464,1714165893163,-500.0,0.00014246,2]
[323692465,1714165893173,-1229.82,0.00014246,2]
[323692466,1714165893182,-6867.51,0.00014246,2]
[323692467,1714165893191,-600.27,0.00014246,2]
[323692468,1714165893200,-1794.51,0.00014246,2]
[323692469,1714165893210,-7720.32,0.00014246,2]
[323692470,1714165893219,-1596.74,0.00014246,2]
[323692471,1714165893228,-2414.19,0.00014246,2]
[323692472,1714165893237,-500.0,0.00014246,2]
[323692473,1714165893246,-2546.68,0.00014246,2]
[323692474,1714165893255,-11893.77,0.00014246,2]
[323692475,1714165893264,-500.0,0.00014246,2]
[323692476,1714165893273,-500.0,0.00014246,2]
[323692477,1714165893282,-1472.99,0.00014246,2]
[323692478,1714165893295,-1714.54,0.00014246,2]
[323692479,1714165893305,-500.0,0.00014246,2]
[323692480,1714165893314,-3379.18,0.00014246,2]
[323692481,1714165893323,-746.33,0.00014246,2]
[323692482,1714165893333,-500.0,0.00014246,2]
[323692483,1714165893344,-1131.17,0.00014246,2]
[323692484,1714165893353,-500.0,0.00014246,2]
[323692485,1714165893363,-1362.32,0.00014246,2]
[323692486,1714165893373,-635.79,0.00014246,2]
[323692487,1714165893383,-1226.03,0.00014246,2]
[323692488,1714165893392,-1261.3,0.00014246,2]
[323692489,1714165893401,-2565.0,0.00014246,2]
[323692490,1714165893410,-6474.87,0.00014246,2]
[323692491,1714165893420,-626.49,0.00014246,2]
[323692492,1714165893429,-5265.92,0.00014246,2]
[323692493,1714165893438,-7575.76,0.00014246,2]
[323692494,1714165893447,-959.47,0.00014246,2]
[323692495,1714165893456,-500.0,0.00014246,2]
[323692496,1714165893466,-894.84,0.00014246,2]
[323692497,1714165893475,-1029.44,0.00014246,2]
[323692498,1714165893485,-1594.94,0.00014246,2]
[323692499,1714165893494,-1585.92,0.00014246,2]
[323692500,1714165893503,-927.21,0.00014246,2]
[323692501,1714165893512,-29278.54,0.00014246,2]
[323692502,1714165893521,-598.42,0.00014246,2]
[323692503,1714165893531,-2169.32,0.00014246,2]
[323692504,1714165893540,-1031.64,0.00014246,2]
[323692505,1714165893550,-500.0,0.00014246,2]
[323692506,1714165893559,-3003.77,0.00014246,2]
[323692507,1714165893568,-500.0,0.00014246,2]
[323692508,1714165893577,-885.97,0.00014246,2]
[323692509,1714165893586,-1452.7,0.00014246,2]
[323692510,1714165893595,-500.0,0.00014246,2]
[323692511,1714165893605,-1299.05,0.00014246,2]
[323692512,1714165893614,-964.95,0.00014246,2]
[323692513,1714165893623,-6953.47,0.00014246,2]
[323692514,1714165893632,-598.29,0.00014246,2]
[323692515,1714165893641,-2182.8,0.00014246,2]
[323692516,1714165893650,-500.0,0.00014246,2]
[323692517,1714165893660,-2149.24,0.00014246,2]
[323692518,1714165893669,-1173.04,0.00014246,2]
[323692519,1714165893678,-831.79,0.00014246,2]
[323692520,1714165893687,-2022.3,0.00014246,2]
[323692521,1714165893696,-4234.92,0.00014246,2]
[323692522,1714165893705,-2096.72,0.00014246,2]
[323692523,1714165893714,-1713.59,0.00014246,2]
[323692524,1714165893723,-625.39,0.00014246,2]
[323692525,1714165893732,-3159.71,0.00014246,2]
[323692526,1714165893741,-1338.07,0.00014246,2]
[323692527,1714165893750,-629.77,0.00014246,2]
[323692528,1714165893760,-15953.33,0.00014246,2]
[323692529,1714165893770,-500.0,0.00014246,2]
[323692530,1714165893779,-8716.91,0.00014246,2]
[323692531,1714165893789,-2333.3,0.00014246,2]
[323692532,1714165893799,-2250.5,0.00014246,2]
[323692533,1714165893810,-4686.34,0.00014246,2]
[323692534,1714165893819,-2136.27,0.00014246,2]
[323692535,1714165893829,-1350.24,0.00014246,2]
[323692536,1714165893839,-1193.75,0.00014246,2]
[323692537,1714165893848,-1860.65,0.00014246,2]
[323692538,1714165893858,-1152.1,0.00014246,2]
[323692539,1714165893867,-3493.58,0.00014246,2]
[323692540,1714165893876,-720.21,0.00014246,2]
[323692541,1714165893886,-1609.49,0.00014246,2]
[323692542,1714165893895,-743.96,0.00014246,2]
[323692543,1714165893904,-4354.83,0.00014246,2]
[323692544,1714165893914,-902.48,0.00014246,2]
[323692545,1714165893923,-771.76,0.00014246,2]
[323692546,1714165893932,-937.47,0.00014246,2]
[323692547,1714165893941,-563.05,0.00014246,2]
[323692548,1714165893950,-1806.19,0.00014246,2]
[323692549,1714165893959,-1571.07,0.00014246,2]
[323692550,1714165893968,-2572.91,0.00014246,2]
[323692551,1714165893977,-1736.03,0.00014246,2]
[323692552,1714165893986,-4550.03,0.00014246,2]
[323692553,1714165893995,-702.48,0.00014246,2]
[323692554,1714165894005,-2483.94,0.00014246,2]
[323692555,1714165894014,-683.53,0.00014246,2]
[323692556,1714165894024,-2118.68,0.00014246,2]
[323692557,1714165894033,-2305.98,0.00014246,2]
[323692558,1714165894042,-2824.94,0.00014246,2]
[323692559,1714165894051,-1519.98,0.00014246,2]
[323692560,1714165894061,-1443.87,0.00014246,2]
[323692561,1714165894070,-1079.67,0.00014246,2]
[323692562,1714165894079,-500.0,0.00014246,2]
[323692563,1714165894089,-5799.26,0.00014246,2]
[323692564,1714165894098,-2700.57,0.00014246,2]
[323692565,1714165894108,-1958.57,0.00014246,2]
[323692566,1714165894117,-377.28,0.00014246,2]
[323692567,1714165894127,-1238.29,0.00014246,2]
[323692568,1714165894136,-2076.33,0.00014246,2]
[323692569,1714165894145,-726.92,0.00014246,2]
[323692570,1714165894157,-3054.76,0.00014246,2]
[323692571,1714165894166,-978.83,0.00014246,2]
[323692572,1714165894175,-2476.96,0.00014246,2]
[323692573,1714165894185,-897.14,0.00014246,2]
[323692574,1714165894194,-1563.14,0.00014246,2]
[323692575,1714165894203,-1893.28,0.00014246,2]
[323692576,1714165894213,-900.63,0.00014246,2]
[323692577,1714165894222,-1013.72,0.00014246,2]
[323692578,1714165894232,-718.21,0.00014246,2]
[323692579,1714165894241,-555.79,0.00014246,2]
[323692580,1714165894250,-6088.6,0.00014246,2]
[323692581,1714165894259,-1066.3,0.00014246,2]
[323692582,1714165894268,-500.0,0.00014246,2]
[323692583,1714165894278,-505.04,0.00014246,2]
[323692584,1714165894289,-2410.31,0.00014246,2]
[323692585,1714165894301,-820.43,0.00014246,2]
[323692586,1714165894311,-523.49,0.00014246,2]
[323692587,1714165894320,-908.81,0.00014246,2]
[323692588,1714165894331,-500.0,0.00014246,2]
[323692589,1714165894340,-1371.32,0.00014246,2]
[323692590,1714165894349,-2025.12,0.00014246,2]
[323692591,1714165894359,-560.23,0.00014246,2]
[323692592,1714165894370,-3137.06,0.00014246,2]
[323692593,1714165894381,-578.95,0.00014246,2]
[323692594,1714165894391,-995.94,0.00014246,2]
[323692595,1714165894401,-2682.02,0.00014246,2]
[323692596,1714165894410,-500.0,0.00014246,2]
[323692597,1714165894419,-500.0,0.00014246,2]
[323692598,1714165894429,-500.0,0.00014246,2]
[323692599,1714165894438,-1815.94,0.00014246,2]
[323692600,1714165894448,-500.0,0.00014246,2]
[323692601,1714165894457,-500.0,0.00014246,2]
[323692602,1714165894467,-21746.55555,0.00014266,2]
[323692603,1714165894477,-14497.703699,0.00014266,2]
[323692604,1714165894486,-400.911725,0.00014266,2]
[323692605,1714165894495,-3309.563,0.00014424,2]
[323692606,1714165894505,-1114.72,0.00014424,2]
[323692607,1714165894514,-21746.55555,0.00014438,2]
[323692608,1714165894524,-14497.703699,0.00014438,2]
[323692609,1714165894533,-400.911725,0.00014438,2]
[323692610,1714165894544,-1000.0,0.000145,2]
[323692611,1714165894553,-842.0,0.000145,2]
[323692612,1714165894564,-500.0,0.0001452,2]
[323692613,1714165894574,-615.87,0.0001452,2]
[323692614,1714165894583,-500.0,0.0001452,2]
[323692615,1714165894593,-500.0,0.0001452,2]
[323692616,1714165894602,-500.62,0.0001452,2]
[323692617,1714165894612,-500.0,0.0001452,2]
[323692618,1714165894622,-609.49,0.0001452,2]
[323692619,1714165894631,-319.87062745,0.0001452,2]
[323692620,1714165894641,-654.47,0.0001452,2]
[323692621,1714165894651,-678.23,0.0001452,2]
[323692622,1714165894660,-613.12,0.0001452,2]
[323692623,1714165894670,-646.77,0.0001452,2]
[323692624,1714165894679,-530.65,0.0001452,2]
[323692625,1714165894688,-880.46,0.0001452,2]
[323692626,1714165894697,-1006.3,0.0001452,2]
[323692627,1714165894706,-500.0,0.0001452,2]
[323692628,1714165894716,-500.0,0.0001452,2]
[323692629,1714165894725,-1261.56,0.0001452,2]
[323692630,1714165894734,-504.93,0.0001452,2]
[323692631,1714165894743,-1360.51,0.0001452,2]
[323692632,1714165894753,-1108.07,0.0001452,2]
[323692633,1714165894762,-500.0,0.0001452,2]
[323692634,1714165894772,-822.7,0.0001452,2]
[323692635,1714165894781,-543.02,0.0001452,2]
[323692636,1714165894791,-500.0,0.0001452,2]
[323692637,1714165894801,-1146.38,0.0001452,2]
[323692638,1714165894811,-1304.31,0.0001452,2]
[323692639,1714165894820,-560.91,0.0001452,2]
[323692640,1714165894831,-500.0,0.0001452,2]
[323692641,1714165894842,-500.0,0.0001452,2]
[323692642,1714165894852,-500.0,0.0001452,2]
[323692643,1714165894862,-921.09,0.0001452,2]
[323692644,1714165894873,-500.0,0.0001452,2]
[323692645,1714165894882,-700.07,0.0001452,2]
[323692646,1714165894892,-1367.84,0.0001452,2]
[323692647,1714165894902,-748.97,0.0001452,2]
[323692648,1714165894912,-760.98,0.0001452,2]
[323692649,1714165894921,-500.0,0.0001452,2]
[323692650,1714165894931,-726.54,0.0001452,2]
[323692651,1714165894941,-550.92,0.0001452,2]
[323692652,1714165894951,-1430.99,0.0001452,2]
[323692653,1714165894961,-570.48,0.0001452,2]
[323692654,1714165894971,-676.01,0.0001452,2]
[323692655,1714165894981,-500.0,0.0001452,2]
[323692656,1714165894991,-1217.26,0.0001452,2]
[323692657,1714165895000,-792.02,0.0001452,2]
[323692658,1714165895010,-500.0,0.0001452,2]
[323692659,1714165895019,-725.24,0.0001452,2]
[323692660,1714165895029,-872.88,0.0001452,2]
[323692661,1714165895038,-940.41,0.0001452,2]
[323692662,1714165895049,-509.95,0.0001452,2]
[323692663,1714165895060,-2000.0,0.0001452,2]
[323692664,1714165895070,-803.02,0.0001452,2]
[323692665,1714165895080,-363.21,0.0001452,2]
[323692666,1714165895090,-500.0,0.0001452,2]
[323692667,1714165895100,-749.95,0.0001452,2]
[323692668,1714165895110,-527.35,0.0001452,2]
[323692669,1714165895119,-500.0,0.0001452,2]
[323692670,1714165895130,-565.11,0.0001452,2]
[323692671,1714165895141,-656.68,0.0001452,2]
[323692672,1714165895151,-626.53,0.0001452,2]
[323692673,1714165895161,-1008.89,0.0001452,2]
[323692674,1714165895171,-500.0,0.0001452,2]
[323692675,1714165895180,-837.59,0.0001452,2]
[323692676,1714165895190,-525.53,0.0001452,2]
[323692677,1714165895200,-1849.17,0.0001452,2]
[323692678,1714165895209,-565.57,0.0001452,2]
[323692679,1714165895219,-500.0,0.0001452,2]
[323692680,1714165895229,-1095.79,0.0001452,2]
[323692681,1714165895239,-500.0,0.0001452,2]
[323692682,1714165895249,-1100.72,0.0001452,2]
[323692683,1714165895259,-500.0,0.0001452,2]
[323692684,1714165895268,-500.0,0.0001452,2]
[323692685,1714165895278,-609.39,0.0001452,2]
[323692686,1714165895290,-500.0,0.0001452,2]
[323692687,1714165895301,-1415.44,0.0001452,2]
[323692688,1714165895311,-721.08,0.0001452,2]
[323692689,1714165895321,-500.0,0.0001452,2]
[323692690,1714165895331,-521.34,0.0001452,2]
[323692691,1714165895341,-5617.73,0.0001452,2]
[323692692,1714165895351,-8630.93,0.0001452,2]
[323692693,1714165895360,-1052.38,0.0001452,2]
[323692694,1714165895371,-500.0,0.0001452,2]
[323692695,1714165895381,-1229.82,0.0001452,2]
[323692696,1714165895392,-6867.51,0.0001452,2]
[323692697,1714165895404,-600.27,0.0001452,2]
[323692698,1714165895414,-1794.51,0.0001452,2]
[323692699,1714165895425,-7720.32,0.0001452,2]
[323692700,1714165895435,-1596.74,0.0001452,2]
[323692701,1714165895446,-2414.19,0.0001452,2]
[323692702,1714165895457,-500.0,0.0001452,2]
[323692703,1714165895468,-2546.68,0.0001452,2]
[323692704,1714165895479,-11893.77,0.0001452,2]
[323692705,1714165895489,-500.0,0.0001452,2]
[323692706,1714165895500,-500.0,0.0001452,2]
[323692707,1714165895510,-1472.99,0.0001452,2]
[323692708,1714165895520,-1714.54,0.0001452,2]
[323692709,1714165895531,-500.0,0.0001452,2]
[323692710,1714165895543,-3379.18,0.0001452,2]
[323692711,1714165895553,-746.33,0.0001452,2]
[323692712,1714165895564,-500.0,0.0001452,2]
[323692713,1714165895575,-1131.17,0.0001452,2]
[323692714,1714165895585,-500.0,0.0001452,2]
[323692715,1714165895596,-1362.32,0.0001452,2]
[323692716,1714165895606,-635.79,0.0001452,2]
[323692717,1714165895617,-1226.03,0.0001452,2]
[323692718,1714165895628,-1261.3,0.0001452,2]
[323692719,1714165895639,-2565.0,0.0001452,2]
[323692720,1714165895649,-6474.87,0.0001452,2]
[323692721,1714165895660,-626.49,0.0001452,2]
[323692722,1714165895670,-5265.92,0.0001452,2]
[323692723,1714165895681,-7575.76,0.0001452,2]
[323692724,1714165895692,-959.47,0.0001452,2]
[323692725,1714165895702,-500.0,0.0001452,2]
[323692726,1714165895712,-894.84,0.0001452,2]
[323692727,1714165895724,-1029.44,0.0001452,2]
[323692728,1714165895734,-1594.94,0.0001452,2]
[323692729,1714165895744,-1585.92,0.0001452,2]
[323692730,1714165895755,-927.21,0.0001452,2]
[323692731,1714165895766,-29278.54,0.0001452,2]
[323692732,1714165895778,-598.42,0.0001452,2]
[323692733,1714165895788,-2169.32,0.0001452,2]
[323692734,1714165895799,-1031.64,0.0001452,2]
[323692735,1714165895812,-500.0,0.0001452,2]
[323692736,1714165895823,-3003.77,0.0001452,2]
[323692737,1714165895834,-500.0,0.0001452,2]
[323692738,1714165895845,-885.97,0.0001452,2]
[323692739,1714165895855,-1452.7,0.0001452,2]
[323692740,1714165895865,-500.0,0.0001452,2]
[323692741,1714165895876,-964.95,0.0001452,2]
[323692742,1714165895887,-1299.05,0.0001452,2]
[323692743,1714165895897,-6953.47,0.0001452,2]
[323692744,1714165895907,-598.29,0.0001452,2]
[323692745,1714165895918,-2182.8,0.0001452,2]
[323692746,1714165895928,-500.0,0.0001452,2]
[323692747,1714165895938,-2149.24,0.0001452,2]
[323692748,1714165895948,-1173.04,0.0001452,2]
[323692749,1714165895959,-831.79,0.0001452,2]
[323692750,1714165895969,-2022.3,0.0001452,2]
[323692751,1714165895978,-4234.92,0.0001452,2]
[323692752,1714165895988,-2096.72,0.0001452,2]
[323692753,1714165895998,-1713.59,0.0001452,2]
[323692754,1714165896008,-625.39,0.0001452,2]
[323692755,1714165896018,-3159.71,0.0001452,2]
[323692756,1714165896028,-1338.07,0.0001452,2]
[323692757,1714165896037,-629.77,0.0001452,2]
[323692758,1714165896048,-15953.33,0.0001452,2]
[323692759,1714165896058,-500.0,0.0001452,2]
[323692760,1714165896069,-8716.91,0.0001452,2]
[323692761,1714165896079,-2333.3,0.0001452,2]
[323692762,1714165896090,-2250.5,0.0001452,2]
[323692763,1714165896100,-4686.34,0.0001452,2]
[323692764,1714165896110,-2136.27,0.0001452,2]
[323692765,1714165896120,-1350.24,0.0001452,2]
[323692766,1714165896131,-1193.75,0.0001452,2]
[323692767,1714165896141,-1860.65,0.0001452,2]
[323692768,1714165896151,-1152.1,0.0001452,2]
[323692769,1714165896161,-3493.58,0.0001452,2]
[323692770,1714165896171,-720.21,0.0001452,2]
[323692771,1714165896181,-1609.49,0.0001452,2]
[323692772,1714165896191,-743.96,0.0001452,2]
[323692773,1714165896201,-4354.83,0.0001452,2]
[323692774,1714165896210,-902.48,0.0001452,2]
[323692775,1714165896220,-771.76,0.0001452,2]